bitfinex-derivatives/quotes_SOLF0:USTF0_20251201
["timestamp","ask_amount","ask_price","bid_price","bid_amount"]
[1764613304728,182.99084168,124.88,124.77,112.2086]
[1764613304940,7.21,124.84,124.78,7.2127]
[1764613305136,7.21,124.84,124.73,14.4314]
[1764613305137,7.48481769,124.84,124.73,112.2485]
[1764613305429,7.48481769,124.84,124.73,181.4685]
[1764613305734,7.48481769,124.84,124.75,112.2293]
[1764613305735,0.05426242,124.8,124.75,112.2293]
[1764613306435,0.05426242,124.8,124.74,181.4584]
[1764613306736,0.05426242,124.8,124.75,112.2251]
[1764613308422,0.05426242,124.8,124.78,7.213]
[1764613310828,0.05426242,124.8,124.75,174.2251]
[1764613310829,0.05426242,124.8,124.75,62.0]
[1764613311234,0.05426242,124.8,124.75,174.229]
[1764613311536,0.05426242,124.8,124.78,7.213]
[1764613314539,2.864e-05,124.87,124.85,119.3509]
[1764613314745,23.90161872,125.0,124.88,112.111]
[1764613315040,112.0079,125.0,124.87,69.26]
[1764613315235,23.91601584,125.0,124.87,112.1211]
[1764613315439,69.26,125.0,124.87,69.26]
[1764613315739,0.0562194,124.95,124.92,0.05426242]
[1764613315945,112.1092194,124.95,124.84,112.1468]
[1764613316145,112.0625,124.94,124.84,7.2097]
[1764613316440,112.0441,124.96,124.84,119.3606]
[1764613316651,7.2037,124.95,124.84,119.3606]
[1764613316938,0.05463379,124.91,124.84,119.3606]
[1764613317442,0.05463379,124.91,124.82,7.2108]
[1764613317644,0.05502106,124.88,124.82,7.2108]
[1764613319042,0.05502106,124.88,124.8,119.3911]
[1764613319235,0.05673288,124.85,124.8,7.2118]
[1764613319940,0.05673288,124.85,124.8,119.3981]
[1764613320134,0.05673288,124.85,124.8,7.2118]
[1764613322647,0.05673288,124.85,124.81,7.2112]
[1764613322839,0.05673288,124.85,124.8,112.1811]
[1764613323341,0.05673288,124.85,124.83,7.21]
[1764613325434,7.2064,124.9,124.84,7.2093]
[1764613325641,112.0416,124.97,124.84,7.2093]
[1764613325642,7.205,124.93,124.84,112.1465]
[1764613325840,7.205,124.93,124.85,112.1376]
[1764613326040,7.205,124.93,124.86,69.24]
[1764613326441,0.05292687,124.91,124.88,0.05673288]
[1764613326841,0.05292687,124.91,124.89,7.2068]
[1764613327045,7.2036,124.95,124.88,0.05673288]
[1764613327247,7.2036,124.95,124.9,69.24]
[1764613328057,0.05651218,124.94,124.91,0.06053592]
[1764613329456,7.26051218,124.94,124.91,0.06053592]
[1764613330559,7.2046,124.93,124.91,0.06053592]
[1764613330758,0.05651218,124.94,124.91,0.06053592]
[1764613331757,7.26051218,124.94,124.91,0.06053592]
[1764613333258,7.2047,124.93,124.91,0.06053592]
[1764613333565,7.2047,124.93,124.83,112.1518]
[1764613333566,2.96627406,124.93,124.83,112.1518]
[1764613333746,2.96627406,124.93,124.83,181.3718]
[1764613333955,2.96627406,124.92,124.84,112.1505]
[1764613334156,2.96627406,124.94,124.86,112.1304]
[1764613334658,0.05484641,124.91,124.89,7.25592383]
[1764613340957,0.05484641,124.91,124.89,0.04912383]
[1764613344361,0.05484641,124.91,124.9,7.2062]
[1764613345756,94.09900128,124.98,124.93,7.2042]
[1764613345948,9.85491236,125.06,124.9,181.2942]
[1764613345949,111.98,125.04,124.92,112.0762]
[1764613346150,2.89596128,125.03,124.94,112.0577]
[1764613346359,86.89596128,125.05,124.95,181.2492]
[1764613346556,111.9781,125.04,124.96,7.2023]
[1764613346861,0.05499812,125.01,124.99,0.05242747]
[1764613350065,7.25489812,125.01,124.99,0.05242747]
[1764613351459,7.2015,124.99,124.9,112.091]
[1764613351656,7.2015,124.99,124.91,112.0876]
[1764613352468,0.0557745,124.96,124.94,0.05154277]
[1764613353366,0.0557745,124.96,124.94,7.25534277]
[1764613354770,0.0557745,124.96,124.94,0.05154277]
[1764613355264,7.2586745,124.96,124.94,0.05154277]
[1764613355468,112.0526,124.95,124.85,69.18]
[1764613355660,7.204,124.94,124.88,7.2071]
[1764613355865,184.12127664,124.96,124.85,181.3175]
[1764613356065,181.2284,124.96,124.85,181.3175]
[1764613356265,2.89438606,124.95,124.85,181.3175]
[1764613356664,0.05718968,124.91,124.85,181.3175]
[1764613357171,0.05718968,124.91,124.85,188.64594401]
[1764613357372,0.05718968,124.91,124.88,7.2073]
[1764613357767,0.05718968,124.91,124.86,112.133]
[1764613357768,0.05718968,124.91,124.87,112.1238]
[1764613358071,0.05718968,124.91,124.89,7.2067]
[1764613360875,7.39023951,125.03,124.9,82.59132055]
[1764613361177,114.84492242,125.08,124.98,112.0237]
[1764613361474,111.9445,125.08,124.98,112.0237]
[1764613361681,111.9445,125.08,124.98,181.2037]
[1764613361872,0.05881865,125.04,125.02,0.05158214]
[1764613366776,84.0,125.03,125.02,0.05158214]
[1764613368983,7.25741865,125.04,125.02,0.05158214]
[1764613369385,0.05881865,125.04,125.02,0.05158214]
[1764613372088,7.25711865,125.04,125.02,0.05158214]
[1764613375187,7.2006,125.0,124.93,7.32844401]
[1764613375384,7.2006,125.0,124.91,119.41454401]
[1764613376098,7.2006,125.0,124.94,7.2038]
[1764613376280,0.0508468,124.98,124.94,7.2038]
[1764613378286,0.0508468,124.98,124.9,112.0887]
[1764613378487,0.05953452,124.95,124.9,112.0887]
[1764613378884,0.05953452,124.95,124.89,7.32844401]
[1764613379084,0.05953452,124.95,124.89,119.43244401]
[1764613380884,0.05953452,124.95,124.9,69.14]
[1764613381594,0.05953452,124.95,124.92,7.205]
[1764613386198,0.05953452,124.95,124.93,7.2041]
[1764613386698,0.05953452,124.95,124.89,119.43244401]
[1764613386999,0.05953452,124.95,124.87,119.44634401]
[1764613387295,0.06145578,124.92,124.87,119.44634401]
[1764613387900,0.06145578,124.92,124.89,7.2065]
[1764613389297,0.06145578,124.92,124.9,7.2062]
[1764613391691,0.06145578,124.92,124.87,7.32844401]
[1764613391888,0.06145578,124.92,124.83,112.1524]
[1764613391889,119.61268986,124.92,124.83,7.32844401]
[1764613392195,0.0518942,124.89,124.83,7.32844401]
[1764613392393,112.1615942,124.89,124.82,7.32844401]
[1764613392597,0.06045056,124.87,124.81,7.32844401]
[1764613392892,0.06045056,124.87,124.8,7.32844401]
[1764613393099,0.05772824,124.85,124.8,119.51184401]
[1764613393486,0.05772824,124.85,124.82,7.2107]
[1764613395191,0.05772824,124.85,124.8,7.2119]
[1764613395796,0.05772824,124.85,124.81,7.2112]
[1764613396599,0.05772824,124.85,124.79,7.2121]
[1764613396899,0.05772824,124.85,124.78,69.16]
[1764613397193,7.2099,124.84,124.78,76.3731]
[1764613397399,0.05092956,124.82,124.78,7.2131]
[1764613398898,0.05092956,124.82,124.78,112.2028]
[1764613399596,0.05092956,124.82,124.8,7.2117]
[1764613401997,0.05092956,124.82,124.81,69.18]
[1764613402599,91.2078,124.88,124.81,69.18]
[1764613402800,91.2078,124.88,124.81,76.3912]
[1764613403700,0.05661152,124.86,124.83,0.05435219]
[1764613409413,7.2093,124.85,124.83,0.05435219]
[1764613410816,84.05661152,124.86,124.83,0.05435219]
[1764613412810,84.05661152,124.86,124.83,7.26445219]
[1764613413203,0.05661152,124.86,124.83,0.05435219]
[1764613413408,0.05661152,124.86,124.84,7.2096]
[1764613414015,69.18,124.94,124.85,112.1387]
[1764613414515,69.18,124.94,124.86,112.1327]
[1764613414715,7.2045,124.93,124.89,7.2067]
[1764613414911,7.2045,124.93,124.86,112.1327]
[1764613415116,0.05335199,124.91,124.88,0.06142292]
[1764613416320,0.05335199,124.91,124.88,7.26872292]
[1764613417312,7.25905199,124.91,124.88,0.06142292]
[1764613418009,0.05335199,124.91,124.88,0.06142292]
[1764613418619,7.25905199,124.91,124.88,0.06142292]
[1764613419621,0.05335199,124.91,124.88,0.06142292]
[1764613420525,0.05335199,124.91,124.89,7.2066]
[1764613421922,0.05335199,124.91,124.88,0.06142292]
[1764613424022,0.05335199,124.91,124.89,7.2068]
[1764613424623,0.05335199,124.91,124.88,0.06142292]
[1764613427017,0.05335199,124.91,124.88,7.26832292]
[1764613427922,7.25905199,124.91,124.88,7.26832292]
[1764613431236,7.39023951,125.01,124.94,112.0539]
[1764613431533,20.0808176,125.08,124.93,112.0672]
[1764613431534,1.3925013,125.06,124.97,112.0329]
[1764613431719,1.3925013,125.06,124.98,112.0253]
[1764613431919,39.34145609,125.09,124.99,181.1535]
[1764613432127,0.05914313,125.05,125.03,0.0520347]
[1764613433923,113.62494313,125.05,124.94,119.38494401]
[1764613434126,111.9658,125.05,124.94,181.1965]
[1764613434738,119.1722,125.04,124.95,76.3432]
[1764613434935,119.1722,125.04,124.98,0.05102451]
[1764613434936,0.05281875,125.01,124.98,0.05102451]
[1764613439531,0.05281875,125.01,124.99,7.2008]
[1764613440934,0.05281875,125.01,124.99,76.3008]
[1764613441539,0.05281875,125.01,124.99,7.2008]
[1764613442337,7.1972,125.06,125.0,7.2002]
[1764613443138,0.05634276,125.04,125.02,0.05904543]
[1764613447040,1.65634276,125.04,124.94,112.0601]
[1764613447241,13.37684236,125.04,124.94,112.0601]
[1764613448146,0.05415744,125.0,124.98,0.05900681]
[1764613456858,7.25465744,125.0,124.98,0.05900681]
[1764613457059,113.66535744,125.0,124.89,119.38617317]
[1764613457259,7.2013,124.99,124.92,7.205]
[1764613457569,7.2013,124.99,124.91,69.06]
[1764613457774,112.0041,125.01,124.91,69.06]
[1764613457959,0.05953678,124.97,124.95,0.04923242]
[1764613461669,7.26213678,124.97,124.95,0.04923242]
[1764613462066,0.05953678,124.97,124.95,0.04923242]
[1764613463466,7.2028,124.96,124.95,0.04923242]
[1764613470478,0.05953678,124.97,124.95,0.04923242]
[1764613470479,7.26173678,124.97,124.95,0.04923242]
[1764613471870,0.05953678,124.97,124.95,0.04923242]
[1764613474872,7.2028,124.96,124.95,0.04923242]
[1764613478465,0.05953678,124.97,124.95,0.04923242]
[1764613479478,0.05953678,124.97,124.95,7.25253242]
[1764613482284,0.05953678,124.97,124.95,0.04923242]
[1764613482988,7.26173678,124.97,124.95,0.04923242]
[1764613483785,7.2028,124.96,124.95,0.04923242]
[1764613484283,0.05953678,124.97,124.95,0.04923242]
[1764613484986,7.26173678,124.97,124.95,0.04923242]
[1764613486081,7.2028,124.96,124.95,0.04923242]
[1764613493179,0.05953678,124.97,124.95,0.04923242]
[1764613493892,0.05953678,124.97,124.95,7.25253242]
[1764613495092,0.05953678,124.97,124.96,7.2028]
[1764613495494,0.05953678,124.97,124.95,7.40841889]
[1764613496293,0.05953678,124.97,124.96,7.2028]
[1764613496487,7.2005,125.0,124.96,7.35918647]
[1764613496893,7.1999,125.01,124.97,7.2021]
[1764613497092,195.9571,125.06,124.98,7.35918647]
[1764613497296,2.707571,125.05,124.98,7.35918647]
[1764613497595,7.1993,125.02,125.01,0.06090554]
[1764613497990,0.0510593,125.03,125.01,0.06090554]
[1764613498695,7.2498593,125.03,125.01,0.06090554]
[1764613498995,0.0510593,125.03,125.01,0.06090554]
[1764613499582,0.0510593,125.03,125.01,7.26080554]
[1764613499788,2.707571,125.08,125.01,112.05910554]
[1764613500097,7.1955,125.09,125.02,7.35918647]
[1764613500499,7.1955,125.09,125.03,7.35918647]
[1764613500883,0.05581071,125.07,125.05,0.05463175]
[1764613502292,7.25241071,125.07,125.05,0.05463175]
[1764613502494,0.05581071,125.07,125.05,0.05463175]
[1764613504297,0.05581071,125.07,125.05,7.25213175]
[1764613504688,0.05581071,125.07,125.05,0.05463175]
[1764613508495,3.12642591,125.07,125.05,0.05463175]
[1764613508702,0.05581071,125.07,125.05,0.05463175]
[1764613509290,10.32302591,125.07,125.05,0.05463175]
[1764613509799,7.25241071,125.07,125.05,0.05463175]
[1764613510290,0.05581071,125.07,125.05,0.05463175]
[1764613511398,0.05581071,125.07,125.05,7.25213175]
[1764613512294,0.05581071,125.07,125.05,0.05463175]
[1764613514101,0.05581071,125.07,125.05,7.25213175]
[1764613514606,0.05581071,125.07,125.05,0.05463175]
[1764613516304,0.05581071,125.07,125.05,7.25213175]
[1764613518106,0.05581071,125.07,125.05,0.05463175]
[1764613518797,3.0706152,125.06,124.97,112.0289]
[1764613519101,3.0706152,125.04,124.97,69.0]
[1764613519898,0.05274264,125.02,124.99,0.05794718]
[1764613520301,0.05274264,125.02,124.99,7.25874718]
[1764613521403,0.05274264,125.02,125.0,7.2003]
[1764613522108,3.0706152,125.07,125.0,112.0047]
[1764613522710,10.2667152,125.08,125.0,112.0047]
[1764613522908,10.2667152,125.08,125.01,69.0]
[1764613523100,0.05660139,125.06,125.03,0.05593217]
[1764613523300,0.05660139,125.06,125.03,7.25453217]
[1764613536821,0.05660139,125.06,125.04,7.198]
[1764613539617,7.25370139,125.06,125.03,0.05593217]
[1764613543426,7.25370139,125.06,125.03,7.25463217]
[1764613543726,0.05660139,125.06,125.04,7.198]
[1764613543925,3.12721659,125.06,125.03,0.05593217]
[1764613544330,0.05660139,125.06,125.03,0.05593217]
[1764613545429,2.68980958,125.05,125.03,7.25443217]
[1764613545630,7.25400139,125.06,125.03,7.25443217]
[1764613545830,2.9292592,125.05,125.03,7.25443217]
[1764613546026,7.25400139,125.06,125.03,7.25443217]
[1764613546233,2.9292592,125.05,125.03,7.25443217]
[1764613546432,7.25400139,125.06,125.03,7.25443217]
[1764613546632,2.92939116,125.05,125.03,7.25443217]
[1764613546838,7.25400139,125.06,125.03,7.25443217]
[1764613547030,2.92939106,125.05,125.03,7.25443217]
[1764613547238,7.25400139,125.06,125.03,7.25443217]
[1764613547535,2.92955013,125.05,125.03,7.25443217]
[1764613547732,7.25400139,125.06,125.03,7.25443217]
[1764613547928,2.92955013,125.05,125.03,7.25443217]
[1764613548133,2.92955013,125.04,125.03,7.25443217]
[1764613550041,2.92955013,125.04,125.03,0.05593217]
[1764613550337,6.00016533,125.04,125.03,0.05593217]
[1764613550639,13.19826533,125.04,125.03,0.05593217]
[1764613551023,6.00016533,125.04,125.03,0.05593217]
[1764613551828,2.92955013,125.04,125.03,0.05593217]
[1764613553635,10.12765013,125.04,125.03,0.05593217]
[1764613556742,13.19826533,125.04,125.03,0.05593217]
[1764613556941,6.00016533,125.04,124.99,14.56018647]
[1764613557243,2.92955013,125.03,124.99,14.56018647]
[1764613557436,2.92955013,125.02,124.99,14.56018647]
[1764613557743,7.1988,125.03,124.99,14.56018647]
[1764613557936,3.01120281,125.02,125.0,0.05453061]
[1764613558132,0.05520749,125.02,125.0,0.05453061]
[1764613559044,10.15572859,125.01,125.0,0.05453061]
[1764613560041,7.2019,124.98,124.94,7.35918647]
[1764613560236,111.9915,125.02,124.94,7.35918647]
[1764613560429,2.95540139,125.01,124.96,7.35918647]
[1764613560639,2.95540139,125.0,124.95,7.35918647]
[1764613560834,111.9659,125.05,124.96,7.35918647]
[1764613561040,0.05215122,125.02,124.99,0.04747661]
[1764613561239,2.95521074,125.01,124.99,0.04747661]
[1764613561439,0.05215122,125.02,124.99,0.04747661]
[1764613561644,2.95447578,125.01,124.99,0.04747661]
[1764613561830,0.05215122,125.02,124.99,0.04747661]
[1764613562036,2.95447586,125.01,124.99,0.04747661]
[1764613562343,7.25165122,125.02,124.99,0.04747661]
[1764613562543,2.95398633,125.01,124.99,0.04747661]
[1764613562744,7.25165122,125.02,124.99,0.04747661]
[1764613563044,10.15418633,125.01,124.99,0.04747661]
[1764613563242,7.2002,125.01,124.99,0.04747661]
[1764613564342,10.15319223,125.01,124.99,0.04747661]
[1764613564746,7.2002,125.01,124.99,0.04747661]
[1764613565849,7.2005,125.0,124.99,0.04747661]
[1764613566642,10.15235484,125.0,124.99,0.04747661]
[1764613568349,7.2005,125.0,124.99,0.04747661]
[1764613568550,10.15235484,125.0,124.99,0.04747661]
[1764613568751,7.2005,125.0,124.99,0.04747661]
[1764613568952,10.15235484,125.0,124.99,0.04747661]
[1764613569152,7.2005,125.0,124.99,0.04747661]
[1764613569349,10.15235484,125.0,124.99,0.04747661]
[1764613569549,7.2005,125.0,124.99,0.04747661]
[1764613569748,10.15235484,125.0,124.99,0.04747661]
[1764613569950,7.2005,125.0,124.99,0.04747661]
[1764613570247,10.15235484,125.0,124.99,0.04747661]
[1764613570447,7.2005,125.0,124.99,0.04747661]
[1764613570647,10.15235484,125.0,124.99,0.04747661]
[1764613570848,7.2005,125.0,124.99,0.04747661]
[1764613571036,10.15235484,125.0,124.99,0.04747661]
[1764613571241,7.2005,125.0,124.99,0.04747661]
[1764613571442,2.95185484,125.01,124.99,0.04747661]
[1764613573355,7.2005,125.0,124.99,0.04747661]
[1764613576459,7.2018,124.98,124.92,7.35918647]
[1764613576751,7.75374503,125.0,124.92,7.35918647]
[1764613576752,2.95185484,124.99,124.92,7.35918647]
[1764613576952,2.95185484,124.99,124.93,7.2043]
[1764613577654,7.2027,124.97,124.94,7.2037]
[1764613577854,0.0529915,124.96,124.94,7.2037]
[1764613579450,0.0529915,124.96,124.93,7.2045]
[1764613579645,7.2559915,124.96,124.91,7.35918647]
[1764613580756,0.0529915,124.96,124.93,7.35918647]
[1764613581461,0.0529915,124.96,124.93,76.33918647]
[1764613583367,0.0529915,124.96,124.95,7.2033]
[1764613590160,0.0529915,124.96,124.94,7.35918647]
[1764613590365,0.0529915,124.96,124.93,76.31918647]
[1764613590658,0.0529915,124.96,124.93,7.35918647]
[1764613591055,0.0529915,124.96,124.92,76.31918647]
[1764613591255,0.0529915,124.96,124.94,7.2034]
[1764613592769,0.0529915,124.96,124.93,7.35918647]
[1764613592963,0.0529915,124.96,124.92,7.35918647]
[1764613593260,3.00272594,124.95,124.9,76.31918647]
[1764613593466,3.00272594,124.95,124.9,83.52538647]
[1764613593664,3.00272594,124.95,124.9,76.31918647]
[1764613594068,7.2558915,124.96,124.9,76.31918647]
[1764613594360,3.00290978,124.95,124.91,7.35918647]
[1764613594566,3.00290978,124.95,124.9,76.31918647]
[1764613595169,3.00290978,124.95,124.91,7.35918647]
[1764613595366,3.00290978,124.95,124.9,76.31918647]
[1764613596067,3.00290978,124.95,124.92,7.205]
[1764613597971,7.2557915,124.96,124.92,7.205]
[1764613598165,10.25870128,124.96,124.92,7.205]
[1764613598365,0.0529915,124.96,124.92,7.35918647]
[1764613598563,0.0529915,124.96,124.91,7.35918647]
[1764613599465,0.0529915,124.96,124.93,112.0687]
[1764613599772,0.0529915,124.96,124.94,76.31918647]
[1764613601573,0.0529915,124.96,124.95,7.2033]
[1764613603266,0.0529915,124.96,124.95,14.56248647]
[1764613608073,0.0529915,124.96,124.95,83.52248647]
[1764613610470,0.0529915,124.96,124.95,14.56248647]
[1764613611175,3.09890532,124.96,124.93,7.35918647]
[1764613611375,3.04591382,124.95,124.91,7.35918647]
[1764613611574,10.24981382,124.94,124.9,83.50488647]
[1764613611878,3.09677766,124.93,124.9,68.94]
[1764613612081,3.04591382,124.92,124.9,68.94]
[1764613612267,0.05086384,124.93,124.9,68.94]
[1764613612672,0.05086384,124.93,124.91,7.2056]
[1764613612970,3.04543959,124.92,124.91,7.2056]
[1764613614478,0.05086384,124.93,124.92,7.2051]
[1764613615475,3.04338402,124.97,124.92,112.0791]
[1764613615674,3.04338402,124.96,124.93,68.96]
[1764613615868,4.80189019,125.01,124.93,68.96]
[1764613616065,3.04306326,125.0,124.93,68.96]
[1764613616264,3.04306326,124.99,124.93,68.96]
[1764613616464,0.05598065,124.97,124.95,0.05055764]
[1764613616664,3.04306326,124.96,124.95,0.05055764]
[1764613616881,10.24586326,124.96,124.95,0.05055764]
[1764613620472,13.32218732,124.96,124.95,0.05055764]
[1764613620778,13.32139612,124.96,124.95,0.05055764]
[1764613621278,112.0631,124.94,124.85,9.91429636]
[1764613621480,3.07632406,124.91,124.84,78.87429636]
[1764613621785,3.04227206,124.93,124.84,78.87429636]
[1764613621786,3.07632406,124.89,124.84,9.91429636]
[1764613621976,3.07632406,124.89,124.81,112.1749]
[1764613621977,3.04226284,124.88,124.81,191.04919636]
[1764613622176,3.07632406,124.89,124.81,191.04919636]
[1764613622383,0.0570244,124.86,124.82,7.2105]
[1764613622976,0.0570244,124.86,124.83,7.2101]
[1764613623177,0.0570244,124.86,124.83,112.1579]
[1764613623576,3.03909707,124.9,124.85,112.1403]
[1764613623775,3.03909707,124.92,124.85,181.1003]
[1764613623976,3.03909707,124.91,124.85,181.1003]
[1764613624174,3.03909707,124.92,124.85,181.1003]
[1764613624784,0.05614263,124.9,124.87,0.0527022]
[1764613625488,0.05614263,124.9,124.87,7.2604022]
[1764613628684,3.03909707,124.94,124.88,7.2068]
[1764613628891,10.24269707,124.95,124.88,7.2068]
[1764613629276,10.24269707,124.95,124.86,115.20362406]
[1764613629486,10.24269707,124.95,124.89,7.2066]
[1764613629690,0.05228221,124.93,124.91,0.05762986]
[1764613631388,3.07632406,124.92,124.91,0.05762986]
[1764613632088,0.05228221,124.93,124.91,0.05762986]
[1764613632290,3.09137928,124.93,124.91,0.05762986]
[1764613633392,10.29587928,124.93,124.91,0.05762986]
[1764613633594,3.07632406,124.92,124.84,68.96]
[1764613634397,3.07632406,124.9,124.82,112.164]
[1764613634590,3.07632406,124.9,124.82,181.124]
[1764613634789,0.05308185,124.87,124.85,7.26308086]
[1764613636298,0.05308185,124.87,124.86,7.2085]
[1764613639495,0.05308185,124.87,124.85,0.05408086]
[1764613641310,0.05308185,124.87,124.85,7.26318086]
[1764613644910,0.05308185,124.87,124.85,0.05408086]
[1764613645209,0.05308185,124.87,124.86,7.2085]
[1764613649014,0.05308185,124.87,124.86,76.1685]
[1764613652216,3.03909707,124.93,124.89,7.2066]
[1764613653123,0.05794705,124.92,124.9,0.05759942]
[1764613653921,0.05794705,124.92,124.9,7.26369942]
[1764613654421,3.10694043,124.92,124.9,7.26369942]
[1764613654621,0.05794705,124.92,124.9,7.26369942]
[1764613654822,3.10694043,124.92,124.9,7.26369942]
[1764613655122,0.05794705,124.92,124.9,7.26369942]
[1764613657219,0.05794705,124.92,124.9,0.05759942]
[1764613661428,3.05429952,124.91,124.9,0.05759942]
[1764613663328,7.26304705,124.92,124.9,0.05759942]
[1764613663520,3.05498284,124.91,124.9,0.05759942]
[1764613664222,10.26058284,124.91,124.85,78.85429636]
[1764613664414,6.1313069,124.9,124.84,9.91429636]
[1764613664621,3.05498284,124.89,124.83,9.91429636]
[1764613664822,3.07632406,124.9,124.83,9.91429636]
[1764613665014,10.26287222,124.89,124.84,7.2096]
[1764613665219,3.10870204,124.88,124.85,0.0513258]
[1764613665414,3.05577222,124.87,124.85,0.0513258]
[1764613665628,0.05292982,124.88,124.85,0.0513258]
[1764613665828,3.05565397,124.87,124.85,0.0513258]
[1764613666029,0.05292982,124.88,124.85,0.0513258]
[1764613666232,3.05572965,124.87,124.85,0.0513258]
[1764613666522,0.05292982,124.88,124.85,0.0513258]
[1764613666727,3.05572965,124.87,124.85,7.2604258]
[1764613666928,0.05292982,124.88,124.85,7.2604258]
[1764613667128,3.05572965,124.87,124.85,7.2604258]
[1764613667328,0.05292982,124.88,124.85,7.2604258]
[1764613667529,3.05598185,124.87,124.85,7.2604258]
[1764613667735,0.05292982,124.88,124.85,7.2604258]
[1764613667932,0.05292982,124.88,124.85,0.0513258]
[1764613668731,0.05292982,124.88,124.87,7.2079]
[1764613668926,3.10896835,124.88,124.87,7.2079]
[1764613669534,0.05292982,124.88,124.87,7.2079]
[1764613672529,0.05292982,124.88,124.87,17.12219636]
[1764613672731,0.05292982,124.88,124.87,7.2079]
[1764613672924,0.05292982,124.88,124.87,17.12219636]
[1764613674541,0.05292982,124.88,124.87,7.2079]
[1764613674835,0.05292982,124.88,124.87,76.1479]
[1764613679946,0.05292982,124.88,124.87,7.2079]
[1764613680549,0.05292982,124.88,124.86,68.92]
[1764613680946,0.05292982,124.88,124.85,7.2600258]
[1764613681245,0.05292982,124.88,124.86,7.208]
[1764613681844,0.05292982,124.88,124.85,68.9713258]
[1764613682449,0.05292982,124.88,124.87,7.2079]
[1764613684642,3.05553737,124.9,124.89,7.2068]
[1764613684848,7.205,124.93,124.89,7.2068]
[1764613685148,3.05541187,124.92,124.89,7.2068]
[1764613685344,3.05541187,124.91,124.89,7.2068]
[1764613685546,3.05565902,124.9,124.87,7.2076]
[1764613685744,0.05505092,124.9,124.87,7.26318607]
[1764613686647,0.05505092,124.9,124.87,0.05558607]
[1764613687146,0.05505092,124.9,124.87,112.17668607]
[1764613688449,0.05505092,124.9,124.89,7.2068]
[1764613688650,0.05505092,124.9,124.89,76.1268]
[1764613689547,0.05505092,124.9,124.89,7.2068]
[1764613690047,3.11225654,124.9,124.89,7.2068]
[1764613694250,3.11225654,124.9,124.87,0.05558607]
[1764613694448,3.05720562,124.89,124.87,0.05558607]
[1764613694643,3.05720562,124.88,124.87,0.05558607]
[1764613695448,0.05505092,124.9,124.87,0.05558607]
[1764613695750,3.05780793,124.89,124.87,0.05558607]
[1764613695950,0.05505092,124.9,124.87,0.05558607]
[1764613696156,3.05776553,124.89,124.87,0.05558607]
[1764613696343,0.05505092,124.9,124.87,0.05558607]
[1764613696545,3.05775241,124.89,124.87,0.05558607]
[1764613696746,0.05505092,124.9,124.87,0.05558607]
[1764613696946,3.05775233,124.89,124.87,0.05558607]
[1764613697158,0.05505092,124.9,124.88,7.207]
[1764613697347,3.05773955,124.89,124.88,7.207]
[1764613698051,3.05773955,124.89,124.87,0.05558607]
[1764613698256,0.05505092,124.9,124.87,0.05558607]
[1764613698257,3.05773955,124.88,124.87,0.05558607]
[1764613709563,3.05773955,124.88,124.87,7.26348607]
[1764613709772,0.05505092,124.9,124.87,0.05558607]
[1764613710168,0.05505092,124.9,124.88,7.2068]
[1764613711172,0.05505092,124.9,124.89,7.2068]
[1764613711372,3.1385008,124.9,124.89,7.2068]
[1764613712078,0.05505092,124.9,124.89,7.2068]
[1764613715283,84.0,124.94,124.91,7.2056]
[1764613715589,3.08341615,124.93,124.87,9.91429636]
[1764613715884,3.08341615,124.92,124.87,9.91429636]
[1764613716185,4.81029861,124.96,124.87,9.91429636]
[1764613716186,3.08341615,124.91,124.87,9.91429636]
[1764613716387,0.05654782,124.9,124.88,0.05200107]
[1764613716584,3.05151437,124.89,124.88,0.05415629]
[1764613718285,10.25831437,124.89,124.88,0.05415629]
[1764613719789,4.65151437,124.89,124.83,9.91429636]
[1764613719994,3.05151437,124.88,124.82,17.12509636]
[1764613720182,3.05151437,124.87,124.82,17.12509636]
[1764613720383,3.05151437,124.86,124.82,17.12509636]
[1764613720590,4.81029861,124.9,124.82,17.12509636]
[1764613720790,0.05949559,124.87,124.85,0.0594919]
[1764613720991,3.05164205,124.86,124.85,0.0594919]
[1764613721689,203.55447612,124.93,124.86,7.2085]
[1764613721896,196.0751,124.93,124.86,7.2085]
[1764613722394,7.2061,124.91,124.86,7.2085]
[1764613722590,7.2061,124.91,124.87,0.05054005]
[1764613722795,0.05238444,124.9,124.87,7.25844005]
[1764613725297,0.05238444,124.9,124.88,7.2072]
[1764613725997,0.05238444,124.9,124.87,0.05054005]
[1764613730689,7.25878444,124.9,124.87,0.05054005]
[1764613731699,0.05238444,124.9,124.87,0.05054005]
[1764613733309,7.25868444,124.9,124.87,0.05054005]
[1764613733599,3.0151689,124.89,124.87,0.05054005]
[1764613733802,3.0151689,124.88,124.87,0.05054005]
[1764613734296,3.0151689,124.88,124.83,17.12429636]